fUSD/lending_fUSD_20240212
["ID","MTS","AMOUNT","RATE_DAILY","PERIOD"]
[313802325,1707732641607,-500.0,0.00022682,2]
[313802326,1707732641616,-801.6,0.00022682,2]
[313802327,1707732641626,-500.0,0.00022682,2]
[313802328,1707732641636,-500.0,0.00022682,2]
[313802329,1707732641645,-614.52894416,0.00022682,2]
[313802330,1707732641655,-500.0,0.00022682,2]
[313802331,1707732641665,-500.0,0.00022682,2]
[313802332,1707732641675,-509.35,0.00022682,2]
[313802333,1707732641684,-500.0,0.00022682,2]
[313802334,1707732641694,-500.0,0.00022682,2]
[313802335,1707732641704,-500.0,0.00022682,2]
[313802336,1707732641713,-500.0,0.00022682,2]
[313802337,1707732641722,-1192.79,0.00022682,2]
[313802338,1707732641731,-253.77,0.00022682,2]
[313802339,1707732641741,-500.0,0.00022682,2]
[313802340,1707732641750,-958.1,0.00022682,2]
[313802341,1707732641760,-638.65,0.00022682,2]
[313802342,1707732641770,-500.0,0.00022682,2]
[313802343,1707732641780,-500.0,0.00022682,2]
[313802344,1707732641790,-500.0,0.00022682,2]
[313802345,1707732641801,-500.0,0.00022682,2]
[313802346,1707732641810,-500.0,0.00022682,2]
[313802347,1707732641820,-1203.0,0.00022682,2]
[313802348,1707732641829,-500.0,0.00022682,2]
[313802349,1707732641840,-544.07,0.00022682,2]
[313802350,1707732641850,-500.0,0.00022682,2]
[313802351,1707732641859,-500.0,0.00022682,2]
[313802352,1707732641870,-579.27,0.00022682,2]
[313802353,1707732641879,-500.0,0.00022682,2]
[313802354,1707732641889,-19681.08,0.00022682,2]
[313802355,1707732641898,-525.49,0.00022682,2]
[313802356,1707732641908,-690.18,0.00022682,2]
[313802357,1707732641918,-500.0,0.00022682,2]
[313802358,1707732641927,-1476.56,0.00022682,2]
[313802359,1707732641936,-500.0,0.00022682,2]
[313802360,1707732641947,-500.0,0.00022682,2]
[313802361,1707732641956,-500.0,0.00022682,2]
[313802362,1707732641965,-885.37,0.00022682,2]
[313802363,1707732641975,-975.71,0.00022682,2]
[313802364,1707732641984,-500.0,0.00022682,2]
[313802365,1707732641994,-500.0,0.00022682,2]
[313802366,1707732642004,-500.0,0.00022682,2]
[313802367,1707732642014,-500.0,0.00022682,2]
[313802368,1707732642023,-500.0,0.00022682,2]
[313802369,1707732642033,-276.21909807,0.00022682,2]
[313802370,1707732642042,-500.0,0.00022682,2]
[313802371,1707732642052,-500.0,0.00022682,2]
[313802372,1707732642061,-1204.53,0.00022682,2]
[313802373,1707732642071,-500.0,0.00022682,2]
[313802374,1707732642081,-500.0,0.00022682,2]
[313802375,1707732642090,-691.02,0.00022682,2]
[313802376,1707732642100,-96.17585569,0.00022682,2]
[313802377,1707732642114,-403.82414431,0.00022682,2]
[313802378,1707732642123,-660.8,0.00022682,2]
[313802379,1707732642133,-500.0,0.00022682,2]
[313802380,1707732642142,-2595.83,0.00022682,2]
[313802381,1707732642152,-524.96965304,0.00022682,2]
[313802382,1707732642162,-1211.01,0.00022682,2]
[313802383,1707732642171,-500.0,0.00022682,2]
[313802384,1707732642181,-1873.28,0.00022682,2]
[313802385,1707732642191,-500.0,0.00022682,2]
[313802386,1707732642200,-585.20430075,0.00022682,2]
[313802387,1707732642209,-545.4140389,0.00022682,2]
[313802388,1707732642221,-1826.3059611,0.00022682,2]
[313802389,1707732642231,-500.0,0.00022682,2]
[313802390,1707732642240,-4190.54,0.00022682,2]
[313802391,1707732642251,-500.0,0.00022682,2]
[313802392,1707732642261,-1096.1,0.00022682,2]
[313802393,1707732642270,-225.62067281,0.00022682,2]
[313802394,1707732642279,-500.0,0.00022682,2]
[313802395,1707732642289,-686.49,0.00022682,2]
[313802396,1707732642299,-1287.34,0.00022682,2]
[313802397,1707732642309,-1694.85,0.00022682,2]
[313802398,1707732642318,-500.0,0.00022682,2]
[313802399,1707732642327,-500.0,0.00022682,2]
[313802400,1707732642337,-3109.15,0.00022682,2]
[313802401,1707732642347,-515.36,0.00022682,2]
[313802402,1707732642357,-500.0,0.00022682,2]
[313802403,1707732642366,-723.14,0.00022682,2]
[313802404,1707732642376,-500.0,0.00022682,2]
[313802405,1707732642385,-512.16,0.00022682,2]
[313802406,1707732642395,-500.0,0.00022682,2]
[313802407,1707732642405,-500.0,0.00022682,2]
[313802408,1707732642415,-2908.46,0.00022682,2]
[313802409,1707732642426,-2558.67,0.00022682,2]
[313802410,1707732642436,-500.0,0.00022682,2]
[313802411,1707732642447,-859.91,0.00022682,2]
[313802412,1707732642456,-1705.21,0.00022682,2]
[313802413,1707732642467,-500.0,0.00022682,2]
[313802414,1707732642477,-263.79862111,0.00022682,2]
[313802415,1707732642486,-500.0,0.00022682,2]
[313802416,1707732642496,-945.94,0.00022682,2]
[313802417,1707732642505,-1815.45,0.00022682,2]
[313802418,1707732642515,-500.0,0.00022682,2]
[313802419,1707732642525,-835.09,0.00022682,2]
[313802420,1707732642535,-1244.88,0.00022682,2]
[313802422,1707732642544,-500.0,0.00022682,2]
[313802423,1707732642554,-2150.5,0.00022682,2]
[313802424,1707732642564,-500.0,0.00022682,2]
[313802425,1707732642575,-1518.75,0.00022682,2]
[313802426,1707732642585,-797.25,0.00022682,2]
[313802428,1707732642596,-559.34,0.00022682,2]
[313802431,1707732642606,-549.46,0.00022682,2]
[313802433,1707732642615,-793.11,0.00022682,2]
[313802435,1707732642626,-500.0,0.00022682,2]
[313802437,1707732642636,-6540.11,0.00022682,2]
[313802438,1707732642646,-500.0,0.00022682,2]
[313802439,1707732642657,-500.0,0.00022682,2]
[313802440,1707732642667,-500.0,0.00022682,2]
[313802441,1707732642678,-760.5,0.00022682,2]
[313802442,1707732642688,-885.05,0.00022682,2]
[313802443,1707732642698,-500.0,0.00022682,2]
[313802444,1707732642707,-500.0,0.00022682,2]
[313802445,1707732642717,-500.0,0.00022682,2]
[313802446,1707732642727,-824.29,0.00022682,2]
[313802447,1707732642737,-500.0,0.00022682,2]
[313802448,1707732642747,-1912.19,0.00022682,2]
[313802449,1707732642758,-500.0,0.00022682,2]
[313802450,1707732642767,-500.0,0.00022682,2]
[313802451,1707732642777,-524.07,0.00022682,2]
[313802452,1707732642787,-870.61,0.00022682,2]
[313802454,1707732642798,-250.0,0.00022682,2]
[313802456,1707732642808,-411.84,0.00022682,2]
[313802458,1707732642818,-500.0,0.00022682,2]
[313802459,1707732642828,-500.0,0.00022682,2]
[313802460,1707732642838,-500.0,0.00022682,2]
[313802461,1707732642847,-1407.77,0.00022682,2]
[313802462,1707732642858,-719.92,0.00022682,2]
[313802463,1707732642869,-589.94,0.00022682,2]
[313802464,1707732642879,-500.0,0.00022682,2]
[313802465,1707732642889,-500.0,0.00022682,2]
[313802466,1707732642899,-500.0,0.00022682,2]
[313802467,1707732642908,-886.85,0.00022682,2]
[313802468,1707732642918,-889.16,0.00022682,2]
[313802469,1707732642927,-3364.83,0.00022682,2]
[313802470,1707732642937,-2253.41,0.00022682,2]
[313802471,1707732642946,-500.0,0.00022682,2]
[313802472,1707732642955,-2668.33,0.00022682,2]
[313802473,1707732642965,-500.0,0.00022682,2]
[313802474,1707732642974,-500.0,0.00022682,2]
[313802475,1707732642984,-500.0,0.00022682,2]
[313802476,1707732642993,-2841.62,0.00022682,2]
[313802477,1707732643004,-500.0,0.00022682,2]
[313802478,1707732643014,-500.0,0.00022682,2]
[313802479,1707732643023,-500.0,0.00022682,2]
[313802480,1707732643033,-500.0,0.00022682,2]
[313802481,1707732643042,-1593.09,0.00022682,2]
[313802482,1707732643051,-3601.86,0.00022682,2]
[313802483,1707732643061,-507.68,0.00022682,2]
[313802484,1707732643070,-500.0,0.00022682,2]
[313802485,1707732643080,-622.34,0.00022682,2]
[313802486,1707732643090,-629.64245841,0.00022682,2]
[313802487,1707732643099,-500.0,0.00022682,2]
[313802488,1707732643109,-3391.96,0.00022682,2]
[313802489,1707732643118,-1429.88,0.00022682,2]
[313802490,1707732643127,-500.0,0.00022682,2]
[313802491,1707732643137,-1751.81,0.00022682,2]
[313802492,1707732643146,-868.79,0.00022682,2]
[313802493,1707732643156,-500.0,0.00022682,2]
[313802494,1707732643165,-500.0,0.00022682,2]
[313802495,1707732643175,-1586.87,0.00022682,2]
[313802496,1707732643185,-552.92,0.00022682,2]
[313802497,1707732643194,-500.0,0.00022682,2]
[313802498,1707732643204,-695.87,0.00022682,2]
[313802499,1707732643213,-755.73,0.00022682,2]
[313802500,1707732643223,-507.58,0.00022682,2]
[313802501,1707732643233,-584.32,0.00022682,2]
[313802502,1707732643473,-6607.13,0.00022682,2]
[313802503,1707732643492,-2271.43,0.00022682,2]
[313802504,1707732643504,-500.0,0.00022682,2]
[313802505,1707732643514,-500.0,0.00022682,2]
[313802506,1707732643524,-1011.5,0.00022682,2]
[313802507,1707732643535,-500.0,0.00022682,2]
[313802508,1707732643545,-736.11,0.00022682,2]
[313802509,1707732643555,-1000.0,0.000227,2]
[313802510,1707732643565,-800.0,0.000227,8]
[313802511,1707732643575,-157.64,0.00022706,2]
[313802512,1707732643585,-589.7,0.00022782,2]
[313802513,1707732643595,-950.13,0.00022782,2]
[313802514,1707732643605,-854.61,0.00022782,2]
[313802515,1707732643614,-500.0,0.00022782,2]
[313802516,1707732643624,-892.93,0.00022782,2]
[313802517,1707732643633,-680.99,0.00022782,2]
[313802518,1707732643643,-887.49,0.00022782,2]
[313802519,1707732643652,-821.0,0.00022782,2]
[313802520,1707732643661,-826.48,0.00022782,2]
[313802521,1707732643671,-502.02,0.00022782,2]
[313802522,1707732643680,-500.0,0.00022782,2]
[313802523,1707732643691,-500.0,0.00022782,2]
[313802524,1707732643701,-2045.22,0.00022782,2]
[313802525,1707732643711,-500.0,0.00022782,2]
[313802526,1707732643720,-524.97,0.00022782,2]
[313802527,1707732643730,-859.41,0.00022782,2]
[313802528,1707732643739,-500.0,0.00022782,2]
[313802529,1707732643749,-500.0,0.00022782,2]
[313802530,1707732643759,-206.19,0.00022782,2]
[313802531,1707732643769,-927.55,0.00022782,2]
[313802532,1707732643778,-252.34,0.00022782,2]
[313802533,1707732643788,-500.0,0.00022782,2]
[313802534,1707732643799,-500.0,0.00022782,2]
[313802535,1707732643808,-2517.15,0.00022782,2]
[313802536,1707732643818,-548.37,0.00022782,2]
[313802537,1707732643827,-500.0,0.00022782,2]
[313802538,1707732643837,-500.0,0.00022782,2]
[313802539,1707732643847,-500.0,0.00022782,2]
[313802540,1707732643856,-500.0,0.00022782,2]
[313802541,1707732643865,-500.0,0.00022782,2]
[313802542,1707732643876,-500.0,0.00022782,2]
[313802543,1707732643885,-500.0,0.00022782,2]
[313802544,1707732643894,-564.15,0.00022782,2]
[313802545,1707732643903,-500.0,0.00022782,2]
[313802546,1707732643914,-500.0,0.00022782,2]
[313802547,1707732643923,-500.0,0.00022782,2]
[313802548,1707732643932,-506.96,0.00022782,2]
[313802549,1707732643942,-500.0,0.00022782,2]
[313802550,1707732643951,-500.0,0.00022782,2]
[313802551,1707732643960,-687.2,0.00022782,2]
[313802552,1707732643970,-501.18,0.00022782,2]
[313802553,1707732643979,-500.0,0.00022782,2]
[313802554,1707732643989,-500.0,0.00022782,2]
[313802555,1707732643998,-723.46,0.00022782,2]
[313802556,1707732644008,-555.18,0.00022782,2]
[313802557,1707732644017,-500.0,0.00022782,2]
[313802558,1707732644027,-506.96,0.00022782,2]
[313802559,1707732644037,-500.0,0.00022782,2]
[313802560,1707732644046,-500.0,0.00022782,2]
[313802561,1707732644055,-500.0,0.00022782,2]
[313802562,1707732644064,-530.34,0.00022782,2]
[313802563,1707732644074,-641.46,0.00022782,2]
[313802564,1707732644083,-761.91,0.00022782,2]
[313802565,1707732644092,-1488.4218595,0.00022783,2]
[313802566,1707732644102,-153.86516527,0.00022786,2]
[313802567,1707732644112,-1500.0,0.000228,2]
[313802568,1707732644122,-1100.0,0.000228,8]
[313802569,1707732644131,-963.697,0.00022882,3]
[313802570,1707732644142,-631.41,0.00022882,2]
[313802571,1707732644151,-966.09,0.00022882,2]
[313802572,1707732644161,-500.0,0.00022882,2]
[313802573,1707732644170,-500.0,0.00022882,2]
[313802574,1707732644179,-500.0,0.00022882,2]
[313802575,1707732644189,-500.0,0.00022882,2]
[313802576,1707732644198,-500.0,0.00022882,2]
[313802577,1707732644207,-500.0,0.00022882,2]
[313802579,1707732644217,-500.0,0.00022882,2]
[313802581,1707732644226,-500.0,0.00022882,2]
[313802583,1707732644235,-651.08,0.00022882,2]
[313802585,1707732644244,-826.55,0.00022882,2]
[313802587,1707732644255,-964.34,0.00022882,2]
[313802589,1707732644265,-500.0,0.00022882,2]
[313802590,1707732644274,-500.0,0.00022882,2]
[313802591,1707732644284,-819.22,0.00022882,2]
[313802592,1707732644293,-500.0,0.00022882,2]
[313802594,1707732644302,-500.0,0.00022882,2]
[313802595,1707732644312,-557.37,0.00022882,2]
[313802596,1707732644321,-853.49,0.00022882,2]
[313802597,1707732644331,-1151.03,0.00022882,2]
[313802598,1707732644340,-500.0,0.00022882,2]
[313802599,1707732644351,-500.0,0.00022882,2]
[313802600,1707732644360,-981.5,0.00022882,2]
[313802601,1707732644369,-500.0,0.00022882,2]
[313802602,1707732644378,-1198.37,0.00022882,2]
[313802603,1707732644387,-520.38,0.00022882,2]
[313802604,1707732644397,-157.81077073,0.00022883,2]
[313802605,1707732644406,-500.0,0.00022883,2]
[313802606,1707732644415,-500.0,0.00022883,2]
[313802607,1707732644426,-500.0,0.00022883,2]
[313802608,1707732644435,-526.82007562,0.00022883,2]
[313802609,1707732644445,-500.0,0.00022883,2]
[313802610,1707732644455,-500.0,0.00022883,2]
[313802611,1707732644465,-500.0,0.00022883,2]
[313802612,1707732644475,-500.0,0.00022883,2]
[313802613,1707732644485,-500.0,0.00022883,2]
[313802614,1707732644494,-500.0,0.00022883,2]
[313802615,1707732644505,-500.0,0.00022883,2]
[313802616,1707732644515,-500.0,0.00022883,2]
[313802617,1707732644524,-521.15891684,0.00022883,2]
[313802618,1707732644534,-500.0,0.00022883,2]
[313802619,1707732644543,-500.0,0.00022883,2]
[313802620,1707732644553,-500.0,0.00022883,2]
[313802621,1707732644563,-500.0,0.00022883,2]
[313802622,1707732644572,-557.22,0.00022883,2]
[313802623,1707732644582,-500.0,0.00022883,2]
[313802624,1707732644591,-500.0,0.00022883,2]
[313802625,1707732644601,-500.0,0.00022883,2]
[313802626,1707732644610,-500.0,0.00022883,2]
[313802627,1707732644619,-500.0,0.00022883,2]
[313802628,1707732644629,-500.0,0.00022883,2]
[313802629,1707732644638,-500.0,0.00022883,2]
[313802630,1707732644648,-500.0,0.00022883,2]
[313802631,1707732644657,-500.0,0.00022883,2]
[313802632,1707732644667,-607.08,0.00022883,2]
[313802633,1707732644676,-500.0,0.00022883,2]
[313802634,1707732644686,-500.0,0.00022883,2]
[313802635,1707732644696,-500.0,0.00022883,2]
[313802636,1707732644706,-500.0,0.00022883,2]
[313802637,1707732644716,-500.0,0.00022883,2]
[313802638,1707732644727,-500.0,0.00022883,2]
[313802639,1707732644738,-500.0,0.00022883,2]
[313802640,1707732644750,-385.19931025,0.00022883,2]
[313802641,1707732644760,-500.0,0.00022883,2]
[313802642,1707732644772,-513.12,0.00022883,2]
[313802643,1707732644782,-500.0,0.00022883,2]
[313802644,1707732644793,-500.0,0.00022883,2]
[313802645,1707732644802,-535.39,0.00022883,2]
[313802646,1707732644814,-590.76,0.00022883,2]
[313802647,1707732644824,-500.0,0.00022883,2]
[313802648,1707732644834,-855.69,0.00022883,2]
[313802649,1707732644847,-682.75,0.00022883,2]
[313802650,1707732644857,-500.0,0.00022883,2]
[313802651,1707732644866,-500.0,0.00022883,2]
[313802652,1707732644875,-500.0,0.00022883,2]
[313802653,1707732644885,-500.0,0.00022883,2]
[313802654,1707732644894,-500.0,0.00022883,2]
[313802655,1707732644904,-500.0,0.00022883,2]
[313802656,1707732644913,-500.0,0.00022883,2]
[313802657,1707732644923,-500.0,0.00022883,2]
[313802658,1707732644933,-500.0,0.00022883,2]
[313802659,1707732644942,-500.0,0.00022883,2]
[313802660,1707732644951,-500.0,0.00022883,2]
[313802661,1707732644960,-500.0,0.00022883,2]
[313802662,1707732644970,-500.0,0.00022883,2]
[313802663,1707732644979,-500.0,0.00022883,2]
[313802664,1707732644988,-500.0,0.00022883,2]
[313802665,1707732644999,-155.4112131,0.00022883,2]
[313802666,1707732645010,-500.0,0.00022883,2]
[313802667,1707732645019,-500.0,0.00022883,2]
[313802668,1707732645028,-500.0,0.00022883,2]
[313802669,1707732645037,-525.27,0.00022883,2]
[313802670,1707732645046,-871.05,0.00022883,2]
[313802671,1707732645055,-500.0,0.00022883,2]
[313802672,1707732645064,-351.48750986,0.00022883,2]
[313802673,1707732645073,-500.0,0.00022883,2]
[313802674,1707732645082,-500.0,0.00022883,2]
[313802675,1707732645092,-675.33,0.00022883,2]
[313802676,1707732645101,-659.55,0.00022883,2]
[313802677,1707732645110,-500.0,0.00022883,2]
[313802678,1707732645119,-561.66,0.00022883,2]
[313802679,1707732645128,-500.0,0.00022883,2]
[313802680,1707732645138,-500.0,0.00022883,2]
[313802681,1707732645147,-194.17118621,0.00022883,2]
[313802682,1707732645157,-500.0,0.00022883,2]
[313802683,1707732645168,-536.81,0.00022883,2]
[313802684,1707732645178,-500.0,0.00022883,2]
[313802685,1707732645188,-500.0,0.00022883,2]
[313802686,1707732645198,-357.62192202,0.00022883,2]
[313802687,1707732645208,-500.0,0.00022883,2]
[313802688,1707732645218,-500.0,0.00022883,2]
[313802689,1707732645228,-500.0,0.00022883,2]
[313802690,1707732645237,-520.88,0.00022883,2]
[313802691,1707732645247,-500.0,0.00022883,2]
[313802692,1707732645257,-500.0,0.00022883,2]
[313802693,1707732645266,-500.0,0.00022883,2]
[313802694,1707732645275,-500.0,0.00022883,2]
[313802695,1707732645285,-500.0,0.00022883,2]
[313802696,1707732645295,-2000.0,0.00022884,2]
[313802697,1707732645304,-200.0,0.00022884,2]
[313802698,1707732645313,-11379.0988524,0.00022884,2]
[313802699,1707732645322,-3750.016722,0.00022884,2]
[313802700,1707732645332,-1050.25967488,0.00022885,2]
[313802701,1707732645341,-155.32230687,0.00022885,2]
[313802702,1707732645351,-1141.64225557,0.00022885,2]
[313802703,1707732645361,-155.0,0.00022885,2]
[313802704,1707732645370,-792.89664718,0.00022885,2]
[313802705,1707732645380,-204.02044638,0.00022885,2]
[313802706,1707732645389,-155.0,0.00022885,2]
[313802707,1707732645399,-179.32698187,0.00022885,2]
[313802708,1707732645409,-303.81871591,0.00022885,2]
[313802709,1707732645418,-155.0,0.00022885,2]
[313802710,1707732645430,-168.6577021,0.00022885,2]
[313802711,1707732645440,-156.15106152,0.00022885,2]
[313802712,1707732645449,-198.52840779,0.00022885,2]
[313802713,1707732645458,-390.58352314,0.00022885,2]
[313802714,1707732645468,-157.51912204,0.00022885,2]
[313802715,1707732645477,-414.05898229,0.00022885,2]
[313802716,1707732645486,-155.71076745,0.00022885,2]
[313802717,1707732645496,-243.49617985,0.00022885,2]
[313802718,1707732645507,-87268.96831643,0.00022885,2]
[313802727,1707732645972,-16241.1346751,0.00022885,2]
[313802728,1707732645984,-10866.02642128,0.00022885,2]
[313802729,1707732645995,-1360.35754579,0.00022885,2]
[313802730,1707732646015,-323.32641825,0.00022885,2]
[313802731,1707732646026,-392.92178369,0.00022885,2]
[313802732,1707732646037,-84470.57024546,0.00022885,2]
[313802733,1707732646049,-4935.00000002,0.00022885,2]
[313802736,1707732646060,-2333.36605109,0.00022885,2]
[313802738,1707732646073,-74015.6323748,0.00022885,2]
[313802740,1707732646082,-2439.27782923,0.00022886,2]
[313802742,1707732646092,-500.0,0.00022889,2]
[313802744,1707732646101,-500.0,0.0002289,2]
[313802746,1707732646111,-1521.0,0.000229,2]
[313802748,1707732646121,-548.7827526,0.000229,2]
[313802750,1707732646130,-1400.0,0.000229,8]
[313802752,1707732646139,-4373.01254494,0.00022931,2]
[313802754,1707732646148,-157.64,0.00022933,2]
[313802756,1707732646158,-180.51239076,0.0002295,3]
[313802758,1707732646167,-500.0,0.00022955,2]
[313802760,1707732646176,-5445.56,0.00022955,2]
[313802762,1707732646185,-5838.81,0.00022955,2]
[313802764,1707732646194,-2035.42,0.00022955,2]
[313802766,1707732646203,-797.58,0.00022955,2]
[313802768,1707732646211,-509.0,0.00022955,2]
[313802770,1707732646220,-5762.06,0.00022955,2]
[313802772,1707732646229,-507.13,0.00022955,2]
[313802774,1707732646238,-500.0,0.00022955,2]
[313802776,1707732646247,-500.0,0.00022955,2]
[313802777,1707732646257,-1688.29,0.00022955,2]
[313802779,1707732646266,-552.02,0.00022955,2]
[313802781,1707732646275,-5762.69,0.00022955,2]
[313802783,1707732646284,-500.0,0.00022955,2]
[313802785,1707732646293,-1387.68,0.00022955,2]
[313802787,1707732646302,-2552.03,0.00022955,2]
[313802790,1707732646312,-500.0,0.00022955,2]
[313802791,1707732646322,-961.84,0.00022955,2]
[313802793,1707732646331,-1526.29,0.00022955,2]
[313802796,1707732646340,-592.06,0.00022955,2]
[313802798,1707732646350,-500.0,0.00022955,2]
[313802799,1707732646359,-500.0,0.00022955,2]
[313802802,1707732646369,-3968.69,0.00022955,2]
[313802803,1707732646378,-1739.19,0.00022955,2]
[313802806,1707732646387,-500.0,0.00022955,2]
[313802808,1707732646396,-2020.87,0.00022955,2]
[313802809,1707732646406,-9391.06,0.00022955,2]
[313802811,1707732646415,-500.0,0.00022955,2]
[313802814,1707732646425,-500.0,0.00022955,2]
[313802815,1707732646434,-500.0,0.00022955,2]
[313802818,1707732646443,-500.0,0.00022955,2]
[313802820,1707732646453,-500.0,0.00022955,2]
[313802822,1707732646462,-500.0,0.00022955,2]
[313802823,1707732646471,-1593.42,0.00022955,2]
[313802825,1707732646480,-500.0,0.00022955,2]
[313802827,1707732646489,-2747.24,0.00022955,2]
[313802830,1707732646499,-500.0,0.00022955,2]
[313802832,1707732646508,-535.71,0.00022955,2]
[313802833,1707732646518,-500.0,0.00022955,2]
[313802835,1707732646527,-777.44,0.00022955,2]
[313802838,1707732646537,-987.35,0.00022955,2]
[313802840,1707732646546,-933.88,0.00022955,2]
[313802841,1707732646555,-500.0,0.00022955,2]
[313802844,1707732646565,-500.0,0.00022955,2]
[313802846,1707732646574,-572.78,0.00022955,2]
[313802848,1707732646583,-1125.23,0.00022955,2]
[313802850,1707732646593,-3729.13,0.00022955,2]
[313802851,1707732646603,-1850.91,0.00022955,2]
[313802853,1707732646612,-712.82,0.00022955,2]
[313802856,1707732646621,-214.05539656,0.00022956,3]
[313802858,1707732646635,-500.0,0.00022956,2]
[313802860,1707732646644,-500.0,0.00022956,2]
[313802862,1707732646652,-500.0,0.00022956,2]
[313802864,1707732646661,-643.46,0.00022956,2]
[313802866,1707732646671,-500.0,0.00022956,2]
[313802868,1707732646680,-558.87,0.00022956,2]
[313802870,1707732646689,-569.05,0.00022956,2]
[313802872,1707732646699,-500.0,0.00022956,2]
[313802874,1707732646708,-500.0,0.00022956,2]
[313802876,1707732646717,-500.0,0.00022956,2]
[313802878,1707732646726,-500.0,0.00022956,2]
[313802880,1707732646735,-526.94,0.00022956,2]
[313802882,1707732646744,-500.0,0.00022956,2]
[313802884,1707732646756,-500.0,0.00022956,2]
[313802886,1707732646770,-727.92,0.00022956,2]
[313802888,1707732646779,-500.0,0.00022956,2]
[313802890,1707732646788,-670.9,0.00022956,2]
[313802892,1707732646796,-500.0,0.00022956,2]
[313802894,1707732646805,-500.0,0.00022956,2]
[313802895,1707732646816,-500.0,0.00022956,2]
[313802898,1707732646825,-906.87,0.00022956,2]
[313802899,1707732646834,-500.0,0.00022956,2]
[313802901,1707732646843,-500.0,0.00022956,2]
[313802903,1707732646852,-824.95,0.00022956,2]
[313802905,1707732646862,-500.0,0.00022956,2]
[313802907,1707732646872,-500.0,0.00022956,2]
[313802909,1707732646881,-501.14,0.00022956,2]
[313802912,1707732646890,-500.0,0.00022956,2]
[313802913,1707732646899,-500.0,0.00022956,2]
[313802915,1707732646907,-500.0,0.00022956,2]
[313802917,1707732646916,-500.0,0.00022956,2]
[313802919,1707732646925,-530.88,0.00022956,2]
[313802921,1707732646934,-500.0,0.00022956,2]
[313802923,1707732646943,-500.0,0.00022956,2]
[313802925,1707732646952,-504.17,0.00022956,2]
[313802927,1707732646962,-500.0,0.00022956,2]
[313802929,1707732646971,-500.0,0.00022956,2]
[313802931,1707732646981,-500.0,0.00022956,2]
[313802934,1707732646990,-500.0,0.00022956,2]
[313802936,1707732646999,-336.41928089,0.00022956,2]
[313802937,1707732647008,-500.0,0.00022956,2]
[313802939,1707732647017,-747.08,0.00022956,2]
[313802941,1707732647026,-797.77,0.00022956,2]
[313802944,1707732647036,-500.0,0.00022956,2]
[313802946,1707732647045,-500.0,0.00022956,2]
[313802948,1707732647054,-500.0,0.00022956,2]
[313802950,1707732647063,-500.0,0.00022956,2]
[313802952,1707732647072,-500.0,0.00022956,2]
[313802953,1707732647081,-694.96,0.00022956,2]
[313802955,1707732647090,-522.69,0.00022956,2]
[313802957,1707732647099,-500.0,0.00022956,2]
[313802960,1707732647108,-500.0,0.00022956,2]
[313802962,1707732647117,-500.0,0.00022956,2]
[313802963,1707732647126,-500.0,0.00022956,2]
[313802966,1707732647135,-500.0,0.00022956,2]